bitfinex-derivatives/quotes_BTCF0:USTF0_20250626
["timestamp","ask_amount","ask_price","bid_price","bid_amount"]
[1750930768568,1.15109242,107510.0,107500.0,0.81647388]
[1750930771171,0.58025242,107510.0,107500.0,0.81647388]
[1750930771369,1.15089242,107510.0,107500.0,0.81647388]
[1750930775670,1.12019242,107510.0,107500.0,0.81647388]
[1750930779979,0.90978163,107510.0,107500.0,0.81647388]
[1750930780174,1.12019242,107510.0,107500.0,0.81647388]
[1750930780373,0.90978163,107510.0,107500.0,0.81647388]
[1750930780571,1.08817242,107510.0,107500.0,1.17727388]
[1750930780772,1.08817242,107510.0,107500.0,1.38768467]
[1750930782675,1.08817242,107510.0,107500.0,1.20255629]
[1750930782977,0.51765242,107510.0,107500.0,1.38768467]
[1750930783379,0.49332119,107510.0,107500.0,1.38768467]
[1750930787687,0.2829104,107510.0,107500.0,1.38768467]
[1750930787885,0.2829104,107510.0,107500.0,1.59809546]
[1750930788086,0.2829104,107510.0,107500.0,2.16853546]
[1750930788690,0.49332119,107510.0,107500.0,2.16853546]
[1750930788988,0.49332119,107510.0,107500.0,1.95812467]
[1750930789389,0.49332119,107510.0,107500.0,2.16853546]
[1750930789993,0.49332119,107510.0,107500.0,1.95812467]
[1750930790593,0.2829104,107510.0,107500.0,1.74771388]
[1750930790793,0.49332119,107510.0,107500.0,1.95812467]
[1750930792895,0.2829104,107510.0,107500.0,1.95812467]
[1750930793096,0.49332119,107510.0,107500.0,1.95812467]
[1750930795402,0.49332119,107510.0,107500.0,1.77299629]
[1750930795700,0.49332119,107510.0,107500.0,1.95812467]
[1750930796301,0.2829104,107510.0,107500.0,1.74771388]
[1750930796497,0.49332119,107510.0,107500.0,2.16853546]
[1750930796892,0.2829104,107510.0,107500.0,2.16853546]
[1750930797097,0.49332119,107510.0,107500.0,2.16853546]
[1750930797500,0.44683489,107510.0,107500.0,2.16853546]
[1750930798002,0.47107103,107510.0,107500.0,2.16853546]
[1750930798604,0.47107103,107510.0,107500.0,1.95812467]
[1750930799006,0.47107103,107510.0,107500.0,1.95800467]
[1750930799303,0.59107103,107510.0,107500.0,1.78567388]
[1750930799505,0.56417103,107510.0,107500.0,1.78567388]
[1750930799902,0.35376024,107510.0,107500.0,1.78567388]
[1750930800104,0.56417103,107510.0,107500.0,1.78567388]
[1750930800900,0.56417103,107510.0,107500.0,2.02668467]
[1750930801097,0.56417103,107510.0,107500.0,2.05888467]
[1750930801302,0.50107103,107510.0,107500.0,2.09048467]
[1750930801698,0.50107103,107510.0,107500.0,1.88007388]
[1750930801901,0.50107103,107510.0,107500.0,2.09048467]
[1750930808918,0.56527103,107510.0,107500.0,2.09048467]
[1750930809119,0.54103489,107510.0,107500.0,2.09048467]
[1750930810324,0.56524461,107510.0,107500.0,2.09048467]
[1750930810524,0.56524461,107510.0,107500.0,2.02668467]
[1750930810923,0.56524461,107510.0,107500.0,1.81619378]
[1750930811421,0.56524461,107510.0,107500.0,0.8967454]
[1750930812025,0.56524461,107510.0,107500.0,1.4669854]
[1750930812221,0.56524461,107510.0,107500.0,1.28104]
[1750930812416,0.56524461,107510.0,107500.0,1.4669855]
[1750930812925,0.56524461,107510.0,107500.0,1.65211388]
[1750930813930,0.56524461,107510.0,107500.0,1.08187388]
[1750930819031,0.56524461,107510.0,107500.0,1.29228467]
[1750930821132,0.56524461,107510.0,107500.0,1.32388467]
[1750930823841,0.56524461,107510.0,107500.0,1.11347388]
[1750930824024,0.64524461,107510.0,107500.0,0.53512838]
[1750930824229,0.56524461,107510.0,107500.0,0.53512838]
[1750930824536,0.56524461,107510.0,107500.0,0.72107378]
[1750930826529,0.88524461,107510.0,107500.0,0.53512838]
[1750930826733,0.88524461,107510.0,107500.0,0.72107378]
[1750930827436,0.88524461,107510.0,107500.0,0.53512838]
[1750930827639,0.88524461,107510.0,107500.0,0.72107378]
[1750930829138,0.88524461,107510.0,107500.0,0.75157378]
[1750930829530,0.88524461,107510.0,107500.0,0.56562838]
[1750930830541,0.88524461,107510.0,107500.0,0.75157378]
[1750930832036,1.42282461,107510.0,107500.0,0.75157378]
[1750930832232,1.42282461,107510.0,107500.0,0.81537378]
[1750930832540,1.39112461,107510.0,107500.0,1.02578457]
[1750930834542,1.39112461,107510.0,107500.0,0.81537378]
[1750930838342,1.39112461,107510.0,107500.0,0.62942838]
[1750930839545,1.39112461,107510.0,107500.0,0.81537378]
[1750930842645,1.39112461,107510.0,107500.0,0.6302454]
[1750930842848,1.39112461,107510.0,107500.0,0.81537378]
[1750930843544,1.18071382,107510.0,107500.0,1.02578457]
[1750930843742,1.39112461,107510.0,107500.0,1.02578457]
[1750930846048,1.39112461,107510.0,107500.0,0.81537378]
[1750930854557,1.39112461,107510.0,107500.0,1.02578457]
[1750930855448,0.58063382,107510.0,107500.0,2.16679536]
[1750930855755,0.26063382,107510.0,107500.0,2.16679536]
[1750930856050,0.004,107510.0,107500.0,2.24118405]
[1750930856758,0.004,107510.0,107500.0,2.16679536]
[1750930856949,0.004,107510.0,107500.0,2.25982411]
[1750930857764,0.004,107510.0,107500.0,2.16679536]
[1750930858250,0.004,107510.0,107500.0,2.24108115]
[1750930872667,0.004,107510.0,107500.0,2.05595277]
[1750930872867,0.004,107510.0,107500.0,2.24108115]
[1750930873758,0.3576365,107530.0,107520.0,0.1859109]
[1750930873960,0.3111589,107530.0,107520.0,2.16510086]
[1750930874162,0.3111589,107530.0,107520.0,2.25900086]
[1750930874363,0.52156969,107530.0,107520.0,2.04859007]
[1750930874971,0.52956969,107530.0,107520.0,2.04859007]
[1750930875161,0.59516969,107530.0,107520.0,2.04859007]
[1750930877275,0.59516969,107530.0,107520.0,2.0576576]
[1750930878273,0.59516969,107530.0,107520.0,1.9946576]
[1750930880176,0.59516969,107530.0,107520.0,1.77517928]
[1750930880471,0.61922786,107530.0,107520.0,0.8567109]
[1750930880672,0.61922786,107530.0,107520.0,1.1160709]
[1750930880977,0.1859109,107520.0,107510.0,0.6861484]
[1750930881178,0.66893248,107520.0,107510.0,1.95359678]
[1750930881367,0.45852169,107520.0,107510.0,2.16400757]
[1750930881567,0.2481109,107520.0,107510.0,2.16400757]
[1750930881768,0.45852169,107520.0,107510.0,2.16400757]
[1750930882178,0.46252169,107520.0,107510.0,2.16400757]
[1750930884483,0.49462169,107520.0,107510.0,2.16400757]
[1750930885286,0.51871725,107520.0,107510.0,2.16400757]
[1750930886382,0.49462169,107520.0,107510.0,2.23829336]
[1750930886578,0.2842109,107520.0,107510.0,1.84275419]
[1750930886785,0.2842109,107520.0,107510.0,2.33159336]
[1750930888986,0.2522109,107520.0,107510.0,2.33159336]
[1750930889389,0.27631103,107520.0,107510.0,2.25730757]
[1750930889689,0.2522109,107520.0,107510.0,2.25730757]
[1750930890384,0.2201109,107520.0,107510.0,2.25730757]
[1750930892089,0.1899109,107520.0,107510.0,2.25730757]
[1750930893894,0.004,107520.0,107510.0,2.25730757]
[1750930894287,0.02810274,107520.0,107510.0,2.25730757]
[1750930894689,0.02810274,107520.0,107510.0,2.46771836]
[1750930894993,0.004,107520.0,107510.0,2.54200415]
[1750930895193,0.004,107520.0,107510.0,2.46771836]
[1750930895396,0.004,107520.0,107510.0,2.54200415]
[1750930896496,0.2634616,107540.0,107530.0,0.1858937]
[1750930896797,0.21099476,107540.0,107530.0,2.12458208]
[1750930897096,0.21099476,107540.0,107530.0,2.39989287]
[1750930897293,0.02510466,107540.0,107530.0,2.39989287]
[1750930897497,0.02510466,107540.0,107530.0,2.61030366]
[1750930897695,0.02610466,107540.0,107530.0,2.39989287]
[1750930898100,0.02610466,107540.0,107530.0,2.61030366]
[1750930898399,0.007,107540.0,107530.0,2.61030366]
[1750930899390,0.007,107540.0,107530.0,2.68458945]
[1750930900188,0.007,107540.0,107530.0,2.54388664]
[1750930900395,0.007,107540.0,107530.0,2.61970676]
[1750930901699,0.007,107540.0,107530.0,2.33958799]
[1750930901903,0.1928763,107540.0,107530.0,2.33958799]
[1750930902103,0.1928763,107540.0,107530.0,2.61970676]
[1750930902699,0.1928763,107540.0,107530.0,2.43457838]
[1750930902900,0.1928763,107540.0,107530.0,2.61970676]
[1750930903402,0.007,107540.0,107530.0,2.61970676]
[1750930904397,0.1928763,107540.0,107530.0,2.61970676]
[1750930906301,0.007,107540.0,107530.0,2.61970676]
[1750930906798,0.1928764,107540.0,107530.0,2.61970676]
[1750930910998,0.1928764,107540.0,107530.0,1.73261838]
[1750930911198,0.47299517,107540.0,107530.0,2.01527382]
[1750930911394,0.56769517,107540.0,107530.0,2.01527382]
[1750930912693,0.2875764,107540.0,107530.0,2.01527382]
[1750930913394,0.2875764,107540.0,107530.0,1.44607382]
[1750930913604,0.56769517,107540.0,107530.0,1.44607382]
[1750930914403,0.56769517,107540.0,107530.0,1.13607382]
[1750930914404,0.2875764,107540.0,107530.0,1.13607382]
[1750930914602,0.56769517,107540.0,107530.0,1.45607382]
[1750930915003,0.56769517,107540.0,107530.0,1.13607382]
[1750930915203,0.63769517,107540.0,107530.0,1.0402537]
[1750930916606,0.63769517,107540.0,107530.0,1.3602537]
[1750930917105,0.56769517,107540.0,107530.0,1.3602537]
[1750930923112,0.5915686,107540.0,107530.0,1.3602537]
[1750930924309,0.52162202,107540.0,107530.0,1.57042589]
[1750930924708,0.31144983,107540.0,107530.0,1.57042589]
[1750930925008,0.49774859,107540.0,107530.0,1.57042589]
[1750930925311,0.45932611,107540.0,107530.0,1.57042589]
[1750930925512,0.43544859,107540.0,107530.0,1.66532589]
[1750930926415,0.2252764,107540.0,107530.0,1.64028208]
[1750930926610,0.2252764,107540.0,107530.0,1.92048492]
[1750930926813,0.2252764,107540.0,107530.0,1.4551537]
[1750930928816,0.2252764,107540.0,107530.0,1.64028208]
[1750930929217,0.24963968,107540.0,107530.0,1.64028208]
[1750930931515,0.56274252,107540.0,107530.0,1.64028208]
[1750930932019,0.59404252,107540.0,107530.0,1.64028208]
[1750930935424,0.52984252,107540.0,107530.0,1.64028208]
[1750930937024,0.24963968,107540.0,107530.0,1.64028208]
[1750930937825,0.52984252,107540.0,107530.0,1.64028208]
[1750930939425,0.21723968,107540.0,107530.0,1.64028208]
[1750930940917,0.49744252,107540.0,107530.0,1.64028208]
[1750930946136,0.21723968,107540.0,107530.0,1.64028208]
[1750930946337,0.42740257,107540.0,107530.0,1.85044497]
[1750930947338,0.42740257,107540.0,107530.0,2.42004497]
[1750930951238,0.42740257,107540.0,107530.0,2.49356386]
[1750930952144,0.42740257,107540.0,107530.0,1.92396386]
[1750930953148,0.42740257,107540.0,107530.0,1.56316386]
[1750930955151,0.42740257,107540.0,107530.0,1.35300097]
[1750930955351,0.42740257,107540.0,107530.0,1.56316386]
[1750930956945,0.42740257,107540.0,107530.0,1.22024097]
[1750930957152,0.42740257,107540.0,107530.0,1.43040386]
[1750930957954,0.63756546,107540.0,107530.0,1.35688497]
[1750930958160,0.66816546,107540.0,107530.0,1.14672208]
[1750930958350,0.69816546,107540.0,107530.0,1.14672198]
[1750930959148,0.66816546,107540.0,107530.0,1.14672198]
[1750930961151,0.66816546,107540.0,107530.0,1.35688487]
[1750930961952,0.73816546,107540.0,107530.0,1.14672198]
[1750930962658,0.73816546,107540.0,107530.0,0.9615936]
[1750930962858,0.73816546,107540.0,107530.0,1.14672198]
[1750930964759,0.66816546,107540.0,107530.0,1.14672198]
[1750930964959,0.66816546,107540.0,107530.0,0.78592198]
[1750930965756,0.1858936,107530.0,107520.0,0.2323853]
[1750930965957,0.42041977,107530.0,107520.0,0.44751368]
[1750930966263,0.51621977,107530.0,107520.0,0.18512838]
[1750930966463,0.72638266,107530.0,107520.0,0.18512838]
[1750930966849,0.73638266,107530.0,107520.0,0.18512838]
[1750930967056,0.73938266,107530.0,107520.0,0.37103928]
[1750930967556,0.52921977,107530.0,107520.0,0.72103928]
[1750930967762,0.48731977,107530.0,107520.0,0.78363928]
[1750930967961,0.29715688,107530.0,107520.0,1.02400217]
[1750930968154,0.25752617,107530.0,107520.0,1.02400217]
[1750930968351,0.23752617,107530.0,107520.0,1.38480217]
[1750930968556,0.23752617,107530.0,107520.0,1.19967379]
[1750930968860,0.23752617,107530.0,107520.0,1.38480217]
[1750930969260,0.21316289,107530.0,107520.0,1.38480217]
[1750930971658,0.21316289,107530.0,107520.0,1.59496506]
[1750930971854,0.003,107530.0,107520.0,2.29840506]
[1750930972055,0.003,107530.0,107520.0,1.87807928]
[1750930972264,0.003,107530.0,107520.0,2.29840506]
[1750930975465,0.23773148,107530.0,107520.0,2.08824217]
[1750930975666,0.42362508,107530.0,107520.0,2.08824217]
[1750930976564,0.23773148,107530.0,107520.0,2.08824217]
[1750930977061,0.02756859,107530.0,107520.0,2.29840506]
[1750930977563,0.02756859,107530.0,107520.0,2.29900506]
[1750930977973,0.21346219,107530.0,107520.0,1.51772217]
[1750930978161,0.42362508,107530.0,107520.0,2.08900217]
[1750930978766,0.42362508,107530.0,107520.0,1.87883928]
[1750930978968,0.42362508,107530.0,107520.0,2.08900217]
[1750930980261,0.42362508,107530.0,107520.0,1.38480217]
[1750930980768,0.42362508,107530.0,107520.0,2.08932217]
[1750930982268,0.45362508,107530.0,107520.0,1.87911928]
[1750930982468,0.48452508,107530.0,107520.0,1.17463928]
[1750930982669,0.54962508,107530.0,107520.0,1.81631928]
[1750930984475,0.54962508,107530.0,107520.0,1.68363928]
[1750930986570,0.51652508,107530.0,107520.0,1.68363928]
[1750930986771,0.51652508,107530.0,107520.0,1.74713928]
[1750930988274,0.51652508,107530.0,107520.0,1.17533928]
[1750930989273,0.49195649,107530.0,107520.0,1.17533928]
[1750930989473,0.49195649,107530.0,107520.0,1.38550217]
[1750930989876,0.45995649,107530.0,107520.0,1.38550217]
[1750930990080,0.42905649,107530.0,107520.0,1.38550217]
[1750930990375,0.39905649,107530.0,107520.0,1.38550217]
[1750930991065,0.23775903,107530.0,107520.0,1.38550217]
[1750930991470,0.23775903,107530.0,107520.0,1.59566506]
[1750930991674,0.23775903,107530.0,107520.0,1.38550217]
[1750930991874,0.42365263,107530.0,107520.0,1.38550217]
[1750930993476,0.39905649,107530.0,107520.0,1.38550217]
[1750930994277,0.1888936,107530.0,107520.0,1.45558356]
[1750930997080,0.2134955,107530.0,107520.0,1.45558356]
[1750930997378,0.1888936,107530.0,107520.0,1.45558356]
[1750930998368,0.003,107530.0,107520.0,1.45558356]
[1750931005681,0.003,107530.0,107520.0,1.58962356]
[1750931007790,0.001,107540.0,107530.0,0.1858936]
[1750931007980,0.001,107540.0,107530.0,1.74924198]
[1750931008177,0.1868763,107540.0,107530.0,2.02948626]
[1750931008377,0.1868763,107540.0,107530.0,1.74924198]
[1750931009285,0.21148131,107540.0,107530.0,1.74924198]
[1750931009685,0.21448131,107540.0,107530.0,1.74924198]
[1750931010387,1.56989357,107540.0,107500.0,0.50980855]
[1750931010586,0.1859455,107500.0,107490.0,0.74089765]
[1750931010788,0.49078786,107500.0,107490.0,1.17578578]
[1750931010991,0.58488786,107500.0,107490.0,0.76419118]
[1750931011192,0.58488786,107500.0,107490.0,0.73189118]
[1750931011789,0.58488786,107500.0,107490.0,0.54592838]
[1750931011986,0.58488786,107500.0,107490.0,1.07189108]
[1750931012186,0.58488786,107500.0,107490.0,0.73189108]
[1750931012388,0.56028978,107500.0,107490.0,0.73189108]
[1750931012985,0.56028978,107500.0,107490.0,1.07189108]
[1750931013182,0.56028978,107500.0,107490.0,0.8867627]
[1750931013382,0.1859627,107490.0,107480.0,0.8691976]
[1750931013689,0.89170698,107490.0,107480.0,0.18512838]
[1750931014791,0.18598,107480.0,107470.0,1.2047202]
[1750931014990,0.18598,107480.0,107470.0,1.5447202]
[1750931015185,0.18598,107480.0,107470.0,1.72984858]
[1750931015390,0.18598,107480.0,107470.0,1.73921884]
[1750931016589,0.18598,107480.0,107470.0,1.74121884]
[1750931016788,0.18598,107480.0,107470.0,1.74521884]
[1750931016988,0.18598,107480.0,107470.0,2.10601884]
[1750931020792,0.18598,107480.0,107470.0,2.09664858]
[1750931022093,0.21878,107480.0,107470.0,2.09664858]
[1750931022694,0.21878,107480.0,107470.0,1.9115202]
[1750931022895,0.21878,107480.0,107470.0,2.09664858]
[1750931025295,0.49902428,107480.0,107470.0,2.09608858]
[1750931025491,0.49902428,107480.0,107470.0,2.03216858]
[1750931025692,0.53222428,107480.0,107470.0,0.68080998]
[1750931025893,0.56292428,107480.0,107470.0,0.41994855]
[1750931026697,0.28268,107480.0,107470.0,0.41994855]
[1750931026886,0.56292428,107480.0,107470.0,0.78994855]
[1750931027896,0.28268,107480.0,107470.0,1.15074855]
[1750931028098,0.28268,107480.0,107470.0,1.18124855]
[1750931029404,0.18598,107480.0,107470.0,1.67812121]
[1750931029597,0.18598,107480.0,107470.0,1.39787693]
[1750931031603,0.82922988,107490.0,107470.0,1.21189393]
[1750931031793,0.82922988,107490.0,107480.0,0.64128]
[1750931031794,0.9159005,107490.0,107480.0,0.64128]
[1750931031996,0.9315949,107490.0,107480.0,0.99128]
[1750931032300,0.3571549,107490.0,107480.0,0.99128]
[1750931033600,0.3608,107500.0,107480.0,0.99042838]
[1750931033805,0.32559723,107520.0,107510.0,0.185928]
[1750931034001,0.27911673,107520.0,107510.0,1.11185638]
[1750931034302,0.27911673,107520.0,107510.0,0.579728]
[1750931034303,0.55936101,107520.0,107510.0,0.579728]
[1750931034604,0.59156101,107520.0,107510.0,0.579728]
[1750931036404,0.23263783,107520.0,107510.0,1.35510066]
[1750931036601,0.20263783,107520.0,107510.0,1.35510066]
[1750931036902,0.20263783,107520.0,107510.0,1.38700066]
[1750931037502,0.01671483,107520.0,107510.0,1.38700066]
[1750931037809,0.20262553,107520.0,107510.0,1.81663638]
[1750931038704,0.1859107,107520.0,107510.0,1.81663638]
[1750931040709,0.1859107,107520.0,107510.0,1.631508]
[1750931040909,0.1859107,107520.0,107510.0,1.81663638]
[1750931042913,0.46615498,107520.0,107510.0,0.611628]
[1750931043114,0.49795498,107520.0,107510.0,1.33925638]
[1750931043322,0.52915498,107520.0,107510.0,1.33925638]
[1750931044514,0.52915498,107520.0,107510.0,0.185928]
[1750931044816,0.77507758,107520.0,107510.0,0.185928]
[1750931046113,0.185928,107510.0,107500.0,1.3966613]
[1750931046310,0.56177228,107510.0,107500.0,1.7766613]
[1750931046511,0.56177228,107510.0,107500.0,1.3966613]
[1750931046813,0.56177228,107510.0,107500.0,1.7266613]
[1750931047309,0.56177228,107510.0,107500.0,0.5932133]
[1750931047811,0.56177228,107510.0,107500.0,0.5952133]
[1750931048917,0.56177228,107510.0,107500.0,0.5962133]
[1750931049116,0.92257228,107510.0,107500.0,0.1889308]
[1750931051519,0.92257228,107510.0,107500.0,0.1889453]
[1750931051915,0.97257228,107510.0,107500.0,0.1889453]
[1750931052421,0.692328,107510.0,107500.0,0.1889453]
[1750931052620,0.97257228,107510.0,107500.0,0.1889453]
[1750931054716,0.99687291,107510.0,107500.0,0.1889453]
[1750931057618,0.99687291,107510.0,107500.0,1e-07]
[1750931057921,2.23635291,107510.0,107500.0,1e-07]
[1750931058817,0.1859626,107490.0,107480.0,0.185969]
[1750931059014,0.46620688,107490.0,107480.0,0.185969]
[1750931059220,0.49680688,107490.0,107480.0,0.218269]
[1750931060022,0.49680688,107490.0,107480.0,0.220269]
[1750931060428,0.49680688,107490.0,107480.0,0.223269]
[1750931061517,0.49680688,107490.0,107480.0,0.533269]
[1750931061718,0.49680688,107490.0,107480.0,0.71839738]
[1750931062530,0.49680688,107490.0,107480.0,0.75139738]
[1750931063231,0.49680688,107490.0,107480.0,0.44139738]
[1750931063530,0.49680688,107490.0,107480.0,0.77139738]
[1750931063725,0.49680688,107490.0,107480.0,0.44139738]
[1750931064124,0.49680688,107490.0,107480.0,0.77139738]
[1750931064927,0.49680688,107490.0,107480.0,0.75139738]
[1750931065129,0.49680688,107490.0,107480.0,0.44139738]
[1750931065323,0.49680688,107490.0,107480.0,0.79139738]
[1750931068637,0.49680688,107490.0,107480.0,0.40839738]
[1750931068838,0.56260688,107490.0,107480.0,0.40839738]
[1750931072237,0.56260688,107490.0,107480.0,0.78839738]
[1750931072446,0.49680688,107490.0,107480.0,0.81959738]
[1750931078648,1.06964688,107490.0,107480.0,0.81959738]
[1750931079346,0.7894026,107490.0,107480.0,0.81959738]
[1750931079552,1.06964688,107490.0,107480.0,0.81959738]
[1750931079850,1.06964688,107490.0,107480.0,0.25362838]
[1750931080851,1.06964688,107490.0,107480.0,0.25062838]
[1750931081052,1.10214688,107490.0,107480.0,0.24962838]
[1750931081548,1.11214688,107490.0,107480.0,0.24962838]
[1750931081852,1.11214688,107490.0,107480.0,0.80560838]
[1750931082152,1.47294688,107490.0,107480.0,0.61962838]
[1750931082850,1.47294688,107490.0,107480.0,0.24962838]
[1750931083853,1.47294688,107490.0,107480.0,0.81560838]
[1750931084051,1.44044688,107490.0,107480.0,0.81560838]
[1750931084851,1.43976688,107490.0,107480.0,0.81560838]
[1750931087251,1.46407101,107490.0,107480.0,0.81560838]
[1750931088752,1.18382673,107490.0,107480.0,0.81560838]
[1750931088952,1.46407101,107490.0,107480.0,0.81560838]
[1750931093861,1.46407101,107490.0,107480.0,1.17640838]
[1750931093862,1.10327101,107490.0,107480.0,1.17640838]
[1750931094856,0.1859626,107490.0,107480.0,1.59612896]
[1750931095056,0.91352249,107500.0,107490.0,0.1859626]
[1750931095251,0.95352249,107500.0,107490.0,1.15649098]
[1750931095458,0.91352249,107500.0,107490.0,1.15649098]
[1750931096562,0.91452249,107500.0,107490.0,1.15649098]
[1750931096962,0.91552249,107500.0,107490.0,1.15649098]
[1750931097162,0.29767239,107500.0,107490.0,1.15649098]
[1750931097370,0.20467989,107500.0,107490.0,1.43673526]
[1750931098166,0.20467989,107500.0,107490.0,1.15649098]
[1750931099566,0.20467989,107500.0,107490.0,1.29089098]
[1750931100268,0.01873459,107500.0,107490.0,1.57113526]
[1750931100461,0.20467999,107500.0,107490.0,1.64550434]
[1750931100769,0.01873459,107500.0,107490.0,1.57113526]
[1750931100969,0.002,107500.0,107490.0,1.64550434]
[1750931104177,0.002,107500.0,107490.0,1.57113526]
[1750931112682,0.002,107500.0,107490.0,1.38600688]
[1750931112977,0.002,107500.0,107490.0,1.57113526]
[1750931115984,0.002,107500.0,107490.0,1.43673526]
[1750931116277,0.002,107500.0,107490.0,2.14081526]
[1750931123290,0.002,107500.0,107490.0,2.23384401]
[1750931127092,0.002,107500.0,107490.0,2.14081526]
[1750931128302,0.002,107500.0,107490.0,2.28104934]
[1750931134500,0.002,107500.0,107490.0,2.37407809]
[1750931147003,0.002,107500.0,107490.0,1.95359973]
[1750931147201,0.002,107500.0,107490.0,2.37407809]
[1750931149607,0.002,107500.0,107490.0,1.66999809]
[1750931149803,0.002,107500.0,107490.0,2.10047891]
[1750931150002,0.0672,107500.0,107490.0,2.10047891]
[1750931150706,0.0672,107500.0,107490.0,2.31071809]
[1750931151104,0.0672,107500.0,107490.0,1.60679809]
[1750931151303,0.0672,107500.0,107490.0,2.31071809]
[1750931152910,0.0672,107500.0,107490.0,2.21768934]
[1750931153811,0.0351,107500.0,107490.0,2.21768934]
[1750931154208,0.0351,107500.0,107490.0,2.25048934]
[1750931158215,0.0351,107500.0,107490.0,1.15120178]
[1750931158415,0.43128458,107500.0,107490.0,1.08700178]
[1750931158616,0.46278458,107500.0,107490.0,1.22044178]
[1750931158819,0.46278458,107500.0,107490.0,1.79092178]
[1750931159017,0.48716662,107500.0,107490.0,1.79092178]
[1750931160620,0.48716662,107500.0,107490.0,1.5806826]
[1750931160814,0.46278458,107500.0,107490.0,1.79092178]
[1750931161325,0.46278458,107500.0,107490.0,1.5806826]
[1750931161617,0.67302376,107500.0,107490.0,1.5806826]
[1750931161915,0.46278458,107500.0,107490.0,1.5806826]
[1750931162313,0.67302376,107500.0,107490.0,1.5806826]
[1750931162621,0.71302376,107500.0,107490.0,0.6802026]
[1750931162814,0.71302376,107500.0,107490.0,0.6902026]
[1750931164623,0.71302376,107500.0,107490.0,0.01]
[1750931164825,1.32382376,107500.0,107490.0,0.01]
[1750931165334,1.89430376,107500.0,107490.0,0.01]
[1750931165821,1.9036206,107500.0,107490.0,0.01]
[1750931166020,2.0636206,107500.0,107490.0,0.01]
[1750931166218,1.8136206,107500.0,107490.0,0.01]
[1750931167727,0.1859626,107490.0,107480.0,0.6862449]
[1750931168026,0.49340178,107490.0,107480.0,1.0362449]
[1750931169026,0.50340178,107490.0,107480.0,1.0362449]
[1750931169227,0.50340178,107490.0,107480.0,1.0372449]
[1750931169631,0.50340178,107490.0,107480.0,1.24748408]
[1750931170521,0.2831626,107490.0,107480.0,1.24748408]
[1750931170721,0.49340178,107490.0,107480.0,1.24748408]
[1750931172130,0.49340178,107490.0,107480.0,1.0372449]
[1750931172335,0.49340178,107490.0,107480.0,1.24748408]
[1750931175133,0.49340178,107490.0,107480.0,1.0372449]
[1750931175331,0.49340178,107490.0,107480.0,1.24748408]
[1750931176734,0.49340178,107490.0,107480.0,1.0372449]
[1750931176935,0.49340178,107490.0,107480.0,1.24748408]
[1750931180631,0.51340178,107490.0,107480.0,1.0372449]
[1750931180843,0.51340178,107490.0,107480.0,0.9907504]
[1750931182339,0.51340178,107490.0,107480.0,0.5834559]
[1750931182643,0.51340178,107490.0,107480.0,0.5369648]
[1750931183237,0.51340178,107490.0,107480.0,0.351]
[1750931183741,1.26444096,107490.0,107480.0,0.141]
[1750931184039,1.26444096,107490.0,107480.0,0.131]
[1750931184040,1.28861987,107490.0,107480.0,0.131]
[1750931184443,1.42209987,107490.0,107480.0,0.131]
[1750931184638,1.42209987,107490.0,107480.0,0.001]
[1750931185640,1.67309987,107490.0,107480.0,0.001]
[1750931186136,1.00262151,107490.0,107480.0,0.001]
[1750931186341,1.42309987,107490.0,107480.0,0.001]
[1750931189344,0.1859799,107480.0,107470.0,0.31042375]
[1750931189642,1.76012994,107480.0,107470.0,0.34392465]
[1750931189841,1.76012994,107480.0,107470.0,0.26392465]
[1750931190036,1.59012994,107480.0,107470.0,0.35392465]
[1750931190233,1.72012994,107480.0,107470.0,0.35392465]
[1750931190437,1.72012994,107480.0,107470.0,0.35492465]
[1750931190939,1.74430022,107480.0,107470.0,0.35492465]
[1750931191546,1.74430022,107480.0,107470.0,0.30842555]
[1750931191741,1.74430022,107480.0,107470.0,0.12243045]
[1750931191943,1.77710022,107480.0,107470.0,0.12243045]
[1750931192341,3.27710022,107480.0,107470.0,0.12243045]
[1750931194149,3.27710022,107480.0,107470.0,0.09193045]
[1750931196150,2.85662186,107480.0,107470.0,0.09193045]
[1750931196348,3.27710022,107480.0,107470.0,0.08193045]
[1750931199246,3.45710022,107480.0,107470.0,0.08193045]
[1750931200149,3.45710022,107480.0,107470.0,0.04193045]
[1750931200546,3.45710022,107480.0,107470.0,0.00193045]
[1750931200751,3.43292994,107480.0,107470.0,0.04193045]
[1750931201153,3.43292994,107480.0,107470.0,0.38193045]
[1750931201645,3.43292994,107480.0,107470.0,0.31193045]
[1750931201845,3.43292994,107480.0,107470.0,0.00193045]
[1750931202045,3.43292994,107480.0,107470.0,0.05193045]
[1750931202551,3.45703475,107480.0,107470.0,0.04193045]
[1750931203541,2.88223475,107480.0,107470.0,0.04193045]
[1750931205148,2.46175639,107480.0,107470.0,0.04193045]
[1750931205448,0.1859974,107470.0,107460.0,0.0304]
[1750931205755,1.24578402,107470.0,107460.0,0.2404]
[1750931206051,1.03554484,107470.0,107460.0,0.2404]
[1750931206452,1.24578402,107470.0,107460.0,0.2404]
[1750931206648,1.24578402,107470.0,107460.0,0.2424]
[1750931206853,1.03554484,107470.0,107460.0,0.2424]
[1750931207055,1.24578402,107470.0,107460.0,0.2424]
[1750931207253,0.8011974,107470.0,107460.0,0.212]
[1750931207455,0.82530375,107470.0,107460.0,0.212]
[1750931207755,1.03554293,107470.0,107460.0,0.003]
[1750931207952,0.82530375,107470.0,107460.0,0.003]
[1750931208151,1.03554293,107470.0,107460.0,0.003]
[1750931208351,1.24578211,107470.0,107460.0,0.003]
[1750931209654,0.82530375,107470.0,107460.0,0.003]
[1750931209850,1.24578211,107470.0,107460.0,0.003]
[1750931210852,1.24578211,107470.0,107460.0,0.0348]
[1750931211156,1.24578211,107470.0,107460.0,0.3848]
[1750931211554,1.03554293,107470.0,107460.0,0.3848]
[1750931211951,0.82530375,107470.0,107460.0,0.3848]
[1750931212148,0.94114293,107470.0,107460.0,0.56992838]
[1750931212347,0.94114293,107470.0,107460.0,0.60142838]
[1750931213151,0.97294293,107470.0,107460.0,0.25142838]
[1750931213757,0.97294293,107470.0,107460.0,0.58142838]
[1750931214353,1.18318211,107470.0,107460.0,0.58142838]
[1750931215054,0.97294293,107470.0,107460.0,0.58142838]
[1750931216258,1.00594293,107470.0,107460.0,0.58142838]
[1750931216456,1.21618211,107470.0,107460.0,0.58142838]
[1750931216656,1.21618211,107470.0,107460.0,0.003]
[1750931219459,1.21618211,107470.0,107460.0,0.333]
[1750931219659,1.21618211,107470.0,107460.0,0.003]
[1750931220758,0.1860321,107450.0,107440.0,0.28288011]
[1750931220961,0.1860321,107450.0,107440.0,0.43683071]
[1750931221156,0.1860321,107450.0,107440.0,0.80800849]
[1750931221659,0.39627128,107450.0,107440.0,1.01824767]
[1750931222050,0.39627128,107450.0,107440.0,0.80800849]
[1750931222257,0.39627128,107450.0,107440.0,1.01824767]
[1750931222458,0.39627128,107450.0,107440.0,0.80800849]
[1750931223155,0.39627128,107450.0,107440.0,0.81300849]